fUSD/lending_fUSD_20250207
["ID","MTS","AMOUNT","RATE_DAILY","PERIOD"]
[352052649,1738909840692,-161.23,0.0001829,2]
[352052650,1738909840701,-294.60140247,0.00018571,2]
[352052652,1738909840710,-156.7,0.000186,2]
[352052654,1738909840720,-353.55455606,0.00018698,2]
[352052656,1738909840729,-500.0,0.00018698,2]
[352052658,1738909840738,-11554.47207698,0.00018699,2]
[352052661,1738909840749,-4115.48653958,0.00018699,2]
[352052710,1738909843439,-21182.53996619,0.00018699,2]
[352052711,1738909843515,-4743.9744104,0.00018699,2]
[352052712,1738909843527,-681.83583395,0.00018699,2]
[352052713,1738909843539,-9082.27302002,0.00018699,2]
[352052714,1738909843550,-445.62002,0.00018699,2]
[352052715,1738909843717,-381.52,0.00018699,2]
[352052716,1738909843729,-12693.4031788,0.00018699,2]
[352052718,1738909846518,-172.13600091,0.00018698,2]
[352052719,1738909846528,-156455.17534109,0.00018699,2]
[352052720,1738909846540,-17030.13647943,0.00018699,2]
[352052721,1738909846629,-793.43414444,0.00018699,2]
[352052722,1738909846639,-338.97869394,0.00018699,2]
[352052723,1738909846650,-500.0,0.000187,2]
[352052724,1738909846660,-733.78650738,0.000187,2]
[352052725,1738909846673,-304.5361749,0.000187,2]
[352052726,1738909846683,-159.96815576,0.00018721,2]
[352052733,1738910378630,1000.0,0.0002,120]
[352052753,1738910937091,2000.0,0.00015,29]
[352052777,1738911032523,-912.26201413,8.851e-05,2]
[352052778,1738911032535,-1587.73798587,8.851e-05,2]
[352052779,1738911032544,-198.68,0.00013699,2]
[352052780,1738911032554,-150.0,0.00013709,2]
[352052781,1738911032563,-4578.96753513,0.00014225,2]
[352052782,1738911032655,-1248.36572989,0.00014225,2]
[352052783,1738911032665,-369.0,0.00015035,2]
[352052784,1738911032675,-150.0,0.00015068,2]
[352052785,1738911032684,-276.80475364,0.00015106,2]
[352052786,1738911032695,-99.99524636,0.00015106,2]
[352052787,1738911032705,-371.36,0.00015206,2]
[352052788,1738911032714,-374.24,0.00015346,2]
[352052789,1738911032723,-380.77,0.00015538,2]
[352052790,1738911032733,-447.08,0.00015562,2]
[352052791,1738911032743,-158.69644954,0.00015816,2]
[352052792,1738911032754,-208.87355046,0.00015816,2]
[352052793,1738911032763,-500.0,0.00015973,2]
[352052794,1738911032773,-250.16858414,0.00016438,2]
[352052795,1738911032783,-900.42144158,0.000165,2]
[352052796,1738911032795,-576.57855842,0.000165,2]
[352052797,1738911032804,-129.71231854,0.00016508,2]
[352052798,1738911032815,-370.28768146,0.00016508,2]
[352052799,1738911032825,-317.65656,0.00016688,7]
[352052800,1738911032835,-57.35347374,0.00016797,2]
[352052801,1738911032850,-8361.37136522,0.00016797,2]
[352052802,1738911032860,-688.41,0.00016839,2]
[352052803,1738911032869,-317.65656,0.00016888,7]
[352052804,1738911032879,-1000.0,0.00016996,2]
[352052805,1738911032888,-450.95,0.0001708,2]
[352052806,1738911032898,-317.65656,0.00017088,7]
[352052807,1738911032907,-500.0,0.00017104,2]
[352052808,1738911032917,-168.43,0.0001718,2]
[352052809,1738911032926,-283.62,0.00017182,30]
[352052810,1738911032936,-250.0,0.00017248,2]
[352052811,1738911032945,-317.65656,0.00017288,7]
[352052812,1738911032954,-850.4863673,0.00017384,2]
[352052813,1738911032963,-200.0,0.0001739,2]
[352052814,1738911032973,-200.0,0.00017393,2]
[352052815,1738911032983,-911.21880997,0.00017396,2]
[352052816,1738911032995,-466.7533832,0.00017396,2]
[352052817,1738911033004,-326.27589448,0.0001742,2]
[352052818,1738911033014,-1377.97219317,0.00017425,2]
[352052819,1738911033025,-200.0,0.00017449,2]
[352052820,1738911033036,-1377.97219317,0.00017452,2]
[352052821,1738911033046,-326.27589448,0.00017455,2]
[352052822,1738911033057,-1377.97219317,0.0001746,2]
[352052824,1738911033066,-850.4863673,0.00017462,2]
[352052825,1738911033076,-850.4863673,0.00017464,2]
[352052826,1738911033086,-326.27589448,0.00017465,2]
[352052827,1738911033096,-200.0,0.00017474,2]
[352052828,1738911033105,-326.27589448,0.00017477,2]
[352052829,1738911033115,-850.4863673,0.0001748,2]
[352052830,1738911033126,-317.65656,0.00017488,7]
[352052831,1738911033137,-308.70411042,0.00017549,2]
[352052832,1738911033147,-174.05,0.00017641,2]
[352052833,1738911033157,-317.65656,0.00017688,7]
[352052834,1738911033168,-999.99,0.00017728,2]
[352052835,1738911033178,-150.99,0.00017728,2]
[352052836,1738911033188,-150.99,0.00017728,2]
[352052837,1738911033199,-1447.56,0.00017728,2]
[352052838,1738911033209,-6267.72,0.00017728,2]
[352052839,1738911033219,-299.99,0.00017728,4]
[352052840,1738911033229,-447.08,0.00017826,2]
[352052841,1738911033239,-854.48,0.00017851,2]
[352052842,1738911033249,-317.65656,0.00017888,7]
[352052843,1738911033259,-2610.07063952,0.00018029,2]
[352052844,1738911033268,-184.05,0.00018082,2]
[352052845,1738911033279,-170.02,0.00018082,2]
[352052846,1738911033288,-317.65656,0.00018088,7]
[352052847,1738911033299,-250.0,0.000181,2]
[352052848,1738911033309,-317.65656,0.00018288,7]
[352052849,1738911033449,-6723.78980753,0.00018385,2]
[352052850,1738911033462,-1005.91138018,0.00018385,2]
[352052851,1738911033474,-898.408,0.00018385,2]
[352052852,1738911033491,-7934.43106463,0.00018385,2]
[352052853,1738911033503,-28892.84080667,0.00018385,2]
[352052854,1738911033514,-317.65656,0.00018488,7]
[352052855,1738911033525,-4000.0,0.0001853,2]
[352052856,1738911033535,-2918.513,0.00018533,2]
[352052857,1738911033546,-177.708,0.00018533,2]
[352052858,1738911033557,-155.88881156,0.00018533,2]
[352052859,1738911033567,-10000.0,0.000186,5]
[352052860,1738911033577,-317.65656,0.00018688,7]
[352052861,1738911033587,-500.0,0.00018698,2]
[352052862,1738911033597,-482.89707508,0.00018698,2]
[352052863,1738911033607,-500.0,0.00018698,2]
[352052864,1738911033617,-500.0,0.00018698,2]
[352052865,1738911033627,-500.0,0.00018698,2]
[352052866,1738911033637,-500.0,0.00018698,2]
[352052867,1738911033647,-500.0,0.00018698,2]
[352052868,1738911033656,-500.0,0.00018698,2]
[352052869,1738911033666,-503.02271041,0.00018698,2]
[352052870,1738911033675,-500.0,0.00018698,2]
[352052871,1738911033686,-451.57506893,0.00018698,2]
[352052872,1738911033695,-500.0,0.00018698,2]
[352052873,1738911033705,-500.0,0.00018698,2]
[352052874,1738911033716,-500.0,0.00018698,2]
[352052875,1738911033726,-500.0,0.00018698,2]
[352052876,1738911033737,-523.40229599,0.00018698,2]
[352052877,1738911033746,-381.42629318,0.00018698,2]
[352052878,1738911033756,-500.0,0.00018698,2]
[352052879,1738911033766,-765.76206983,0.00018698,2]
[352052880,1738911033778,-156.39864357,0.00018698,2]
[352052881,1738911033789,-182.30028477,0.00018698,2]
[352052882,1738911033800,-639.0,0.00018698,13]
[352052883,1738911033810,-372.89,0.00018698,2]
[352052884,1738911033819,-382.02,0.00018698,2]
[352052885,1738911033829,-5677.87440856,0.00018699,2]
[352052886,1738911033839,-765.76206979,0.00018699,2]
[352052887,1738911033849,-256.57638307,0.00018699,2]
[352052888,1738911033859,-256.57638299,0.000187,2]
[352052889,1738911033869,-500.0,0.000187,2]
[352052890,1738911033879,-765.76206979,0.000187,2]
[352052891,1738911033889,-256.57638299,0.00018701,2]
[352052892,1738911033899,-765.76206979,0.00018701,2]
[352052893,1738911033908,-256.57638299,0.00018702,2]
[352052894,1738911033918,-765.76206979,0.00018702,2]
[352052895,1738911033928,-256.57638299,0.00018703,2]
[352052896,1738911033939,-765.76206979,0.00018703,2]
[352052897,1738911033948,-256.57638299,0.00018703,2]
[352052898,1738911033958,-765.76206979,0.00018704,2]
[352052899,1738911033968,-256.57638299,0.00018704,2]
[352052900,1738911033979,-765.76206979,0.00018705,2]
[352052901,1738911033990,-256.57638299,0.00018705,2]
[352052902,1738911034000,-765.76206979,0.00018706,2]
[352052903,1738911034011,-256.57638299,0.00018706,2]
[352052904,1738911034021,-765.76206979,0.00018707,2]
[352052905,1738911034035,-256.57638299,0.00018707,2]
[352052906,1738911034045,-1000.0,0.0001872,2]
[352052907,1738911034055,-5677.87440855,0.00018755,2]
[352052908,1738911034065,-200.0,0.00018765,2]
[352052909,1738911034076,-500.0,0.00018773,2]
[352052910,1738911034086,-501.04224172,0.00018773,2]
[352052911,1738911034096,-500.0,0.00018773,2]
[352052912,1738911034107,-198.97,0.00018797,2]
[352052913,1738911034117,-500.0,0.00018797,2]
[352052914,1738911034127,-500.0,0.00018797,2]
[352052915,1738911034138,-500.0,0.00018797,2]
[352052916,1738911034147,-343.62754472,0.00018797,2]
[352052917,1738911034156,-500.0,0.00018797,2]
[352052918,1738911034166,-500.0,0.00018797,2]
[352052919,1738911034175,-500.0,0.00018797,2]
[352052920,1738911034185,-504.24365164,0.00018797,2]
[352052921,1738911034195,-358.74458182,0.00018797,2]
[352052922,1738911034205,-508.33304653,0.00018797,2]
[352052923,1738911034216,-507.40665904,0.00018797,2]
[352052924,1738911034226,-382.79405986,0.00018797,2]
[352052925,1738911034235,-509.30036205,0.00018797,2]
[352052926,1738911034245,-428.03548667,0.00018797,2]
[352052927,1738911034255,-500.0,0.00018797,2]
[352052928,1738911034266,-500.0,0.00018797,2]
[352052929,1738911034279,-202.98926241,0.00018797,2]
[352052930,1738911034289,-1046.463254,0.00018798,2]
[352052931,1738911034299,-156.121252,0.00018798,2]
[352052932,1738911034310,-1102.279528,0.00018798,2]
[352052933,1738911034321,-507.1735232,0.00018798,2]
[352052934,1738911034331,-500.0,0.00018798,2]
[352052935,1738911034345,-500.0,0.00018798,2]
[352052936,1738911034356,-500.0,0.00018798,2]
[352052937,1738911034367,-500.0,0.00018798,2]
[352052938,1738911034377,-500.0,0.00018798,2]
[352052939,1738911034388,-500.0,0.00018798,2]
[352052940,1738911034397,-502.35775781,0.00018798,2]
[352052941,1738911034407,-500.0,0.00018798,2]
[352052942,1738911034417,-508.83694173,0.00018798,2]
[352052943,1738911034428,-500.0,0.00018798,2]
[352052944,1738911034437,-500.0,0.00018798,2]
[352052945,1738911034447,-500.0,0.00018798,2]
[352052946,1738911034457,-589.76,0.00018798,2]
[352052947,1738911034466,-500.0,0.00018798,2]
[352052948,1738911034476,-515.78530838,0.00018798,2]
[352052949,1738911034485,-500.0,0.00018798,2]
[352052950,1738911034495,-333.39931521,0.00018798,2]
[352052951,1738911034509,-166.60068479,0.00018798,2]
[352052952,1738911034519,-133.39931521,0.00018798,2]
[352052953,1738911034532,-366.60068479,0.00018798,2]
[352052954,1738911034542,-615.83,0.00018798,2]
[352052955,1738911034551,-500.0,0.00018798,2]
[352052956,1738911034560,-500.0,0.00018798,2]
[352052957,1738911034569,-27.63672467,0.00018798,2]
[352052962,1738911038295,-472.36327533,0.00018798,2]
[352052963,1738911038304,-535.45194502,0.00018798,2]
[352052964,1738911038313,-500.0,0.00018798,2]
[352052965,1738911038323,-500.0,0.00018798,2]
[352052966,1738911038332,-500.0,0.00018798,2]
[352052967,1738911038341,-638.47,0.00018798,2]
[352052968,1738911038353,-115.12799109,0.00018798,2]
[352052969,1738911038370,-384.87200891,0.00018798,2]
[352052970,1738911038379,-500.0,0.00018798,2]
[352052971,1738911038388,-500.0,0.00018798,2]
[352052972,1738911038397,-500.0,0.00018798,2]
[352052973,1738911038406,-500.0,0.00018798,2]
[352052974,1738911038415,-353.59557375,0.00018798,2]
[352052975,1738911038426,-139.40442625,0.00018798,2]
[352052976,1738911038436,-500.0,0.00018798,2]
[352052977,1738911038445,-500.0,0.00018798,2]
[352052978,1738911038454,-500.0,0.00018798,2]
[352052979,1738911038463,-510.82778779,0.00018798,2]
[352052980,1738911038473,-500.0,0.00018798,2]
[352052981,1738911038482,-500.0,0.00018798,2]
[352052982,1738911038494,-512.17915267,0.00018798,2]
[352052983,1738911038503,-500.0,0.00018798,2]
[352052984,1738911038512,-506.79934699,0.00018798,2]
[352052985,1738911038521,-450.0,0.00018798,2]
[352052986,1738911038532,-500.0,0.00018798,2]
[352052987,1738911038542,-500.0,0.00018798,2]
[352052988,1738911038551,-500.0,0.00018798,2]
[352052989,1738911038560,-500.0,0.00018798,2]
[352052990,1738911038569,-500.0,0.00018798,2]
[352052991,1738911038578,-500.0,0.00018798,2]
[352052992,1738911038588,-500.0,0.00018798,2]
[352052993,1738911038598,-500.0,0.00018798,2]
[352052994,1738911038607,-500.0,0.00018798,2]
[352052996,1738911038617,-500.0,0.00018798,2]
[352052997,1738911038627,-500.0,0.00018798,2]
[352052999,1738911038637,-500.0,0.00018798,2]
[352053000,1738911038646,-500.0,0.00018798,2]
[352053001,1738911038655,-503.08637926,0.00018798,2]
[352053002,1738911038664,-500.0,0.00018798,2]
[352053003,1738911038674,-500.0,0.00018798,2]
[352053004,1738911038683,-500.0,0.00018798,2]
[352053005,1738911038692,-500.0,0.00018798,2]
[352053006,1738911038702,-486.28970544,0.00018798,2]
[352053007,1738911038714,-13.71029456,0.00018798,2]
[352053008,1738911038724,-379.30152872,0.00018798,2]
[352053009,1738911038735,-120.69847128,0.00018798,2]
[352053010,1738911038744,-500.0,0.00018798,2]
[352053011,1738911038754,-12.60140948,0.00018798,2]
[352053012,1738911038765,-487.39859052,0.00018798,2]
[352053013,1738911038774,-352.39120644,0.00018798,2]
[352053014,1738911038787,-147.60879356,0.00018798,2]
[352053015,1738911038796,-599.48573489,0.00018798,2]
[352053016,1738911038806,-536.16,0.00018798,2]
[352053017,1738911038814,-305.8207684,0.00018798,2]
[352053018,1738911038825,-194.1792316,0.00018798,2]
[352053019,1738911038834,-500.0,0.00018798,2]
[352053020,1738911038843,-500.0,0.00018798,2]
[352053021,1738911038853,-500.0,0.00018798,2]
[352053022,1738911038862,-500.0,0.00018798,2]
[352053023,1738911038872,-500.0,0.00018798,2]
[352053024,1738911038881,-17.92775941,0.00018798,2]
[352053025,1738911038892,-482.07224059,0.00018798,2]
[352053026,1738911038902,-17.62386343,0.00018798,2]
[352053031,1738911040383,-311.83288963,0.00018798,2]
[352053032,1738911040393,-629.83,0.00018798,2]
[352053033,1738911040403,-500.0,0.00018798,2]
[352053034,1738911040413,-500.0,0.00018798,2]
[352053035,1738911040423,-611.27,0.00018798,2]
[352053036,1738911040433,-277.95542569,0.00018798,2]
[352053037,1738911040443,-507.13,0.00018798,2]
[352053038,1738911040453,-500.0,0.00018798,2]
[352053039,1738911040463,-500.0,0.00018798,2]
[352053040,1738911040473,-500.0,0.00018798,2]
[352053041,1738911040483,-607.46,0.00018798,2]
[352053042,1738911040493,-500.0,0.00018798,2]
[352053043,1738911040503,-500.0,0.00018798,2]
[352053044,1738911040513,-500.0,0.00018798,2]
[352053045,1738911040523,-500.0,0.00018798,2]
[352053046,1738911040535,-500.0,0.00018798,2]
[352053047,1738911040544,-500.0,0.00018798,2]
[352053048,1738911040554,-588.9665311,0.00018798,2]
[352053049,1738911040563,-524.89,0.00018798,2]
[352053050,1738911040574,-500.0,0.00018798,2]
[352053051,1738911040583,-500.0,0.00018798,2]
[352053052,1738911040592,-648.0,0.00018798,2]
[352053053,1738911040602,-500.0,0.00018798,2]
[352053054,1738911040611,-500.0,0.00018798,2]
[352053055,1738911040621,-500.0,0.00018798,2]
[352053056,1738911040630,-500.0,0.00018798,2]
[352053057,1738911040640,-500.0,0.00018798,2]
[352053058,1738911040649,-500.0,0.00018798,2]
[352053059,1738911040659,-500.0,0.00018798,2]
[352053060,1738911040669,-500.0,0.00018798,2]
[352053061,1738911040678,-500.0,0.00018798,2]
[352053062,1738911040687,-500.0,0.00018798,2]
[352053063,1738911040697,-500.0,0.00018798,2]
[352053064,1738911040706,-500.0,0.00018798,2]
[352053065,1738911040716,-500.0,0.00018798,2]
[352053066,1738911040726,-550.46526825,0.00018798,2]
[352053067,1738911040735,-500.0,0.00018798,2]
[352053068,1738911040746,-274.58042911,0.00018798,2]
[352053069,1738911040755,-500.0,0.00018798,2]
[352053070,1738911040765,-500.0,0.00018798,2]
[352053071,1738911040775,-500.0,0.00018798,2]
[352053072,1738911040786,-500.0,0.00018798,2]
[352053073,1738911040796,-405.67,0.00018798,2]
[352053074,1738911040805,-500.0,0.00018798,2]
[352053075,1738911040815,-500.0,0.00018798,2]
[352053076,1738911040824,-500.0,0.00018798,2]
[352053077,1738911040834,-500.0,0.00018798,2]
[352053078,1738911040843,-500.0,0.00018798,2]
[352053079,1738911040853,-539.92648161,0.00018798,2]
[352053080,1738911040862,-500.0,0.00018798,2]
[352053081,1738911040872,-500.0,0.00018798,2]
[352053082,1738911040881,-615.82344269,0.00018798,2]
[352053083,1738911040890,-632.62,0.00018798,2]
[352053084,1738911040907,-500.0,0.00018798,2]
[352053085,1738911040917,-500.0,0.00018798,2]
[352053086,1738911040927,-500.0,0.00018798,2]
[352053087,1738911040936,-292.08,0.00018798,2]
[352053088,1738911040946,-500.0,0.00018798,2]
[352053089,1738911040955,-500.0,0.00018798,2]
[352053090,1738911040965,-500.0,0.00018798,2]
[352053091,1738911040975,-500.0,0.00018798,2]
[352053092,1738911040985,-500.0,0.00018798,2]
[352053093,1738911040995,-500.0,0.00018798,2]
[352053094,1738911041004,-500.0,0.00018798,2]
[352053095,1738911041014,-500.0,0.00018798,2]
[352053096,1738911041024,-500.0,0.00018798,2]
[352053097,1738911041034,-549.23,0.00018798,2]
[352053098,1738911041043,-463.83,0.00018798,2]
[352053099,1738911041053,-500.0,0.00018798,2]
[352053100,1738911041063,-231.62247172,0.00018798,2]
[352053101,1738911041073,-500.0,0.00018798,2]
[352053102,1738911041082,-500.0,0.00018798,2]
[352053103,1738911041092,-500.0,0.00018798,2]
[352053104,1738911041102,-626.85,0.00018798,2]
[352053105,1738911041112,-500.0,0.00018798,2]
[352053106,1738911041121,-500.0,0.00018798,2]
[352053107,1738911041131,-505.6,0.00018798,2]
[352053108,1738911041141,-500.0,0.00018798,2]
[352053109,1738911041151,-524.10823689,0.00018798,2]
[352053110,1738911041161,-500.0,0.00018798,2]
[352053111,1738911041170,-500.0,0.00018798,2]
[352053112,1738911041181,-500.0,0.00018798,2]
[352053113,1738911041191,-500.0,0.00018798,2]
[352053114,1738911041200,-500.0,0.00018798,2]
[352053115,1738911041210,-500.0,0.00018798,2]
[352053116,1738911041219,-500.0,0.00018798,2]
[352053117,1738911041229,-500.0,0.00018798,2]
[352053118,1738911041238,-500.0,0.00018798,2]
[352053119,1738911041247,-500.0,0.00018798,2]
[352053120,1738911041257,-500.0,0.00018798,2]
[352053121,1738911041266,-203266.90001369,0.00018798,3]
[352053122,1738911042097,-331.07,0.00018798,3]
[352053123,1738911042109,-50000.0,0.00018798,3]
[352053124,1738911042131,-333.18945378,0.00018798,3]
[352053125,1738911042165,-2319.25807075,0.00018798,3]
[352053128,1738911043669,-401.44214624,0.00018797,2]
[352053129,1738911043681,-98.55785376,0.00018797,2]
[352053130,1738911043691,-420.11811846,0.00018798,3]
[352053131,1738911043703,-28019.2140588,0.00018798,3]
[352053139,1738911043795,-800.66390611,0.00018798,3]
[352053150,1738911044017,-4836.0,0.00018798,3]
[352053151,1738911044029,-576.6553632,0.00018798,3]
[352053157,1738911044114,-1149.24359449,0.00018798,3]
[352053158,1738911044126,-835.95944664,0.00018798,3]
[352053159,1738911044137,-29544.49013872,0.00018798,3]
[352053160,1738911044149,-362.0517599,0.00018798,3]
[352053161,1738911044160,-682.36978236,0.00018798,3]
[352053162,1738911044171,-6397.3587318,0.00018798,3]
[352053163,1738911044229,-9518.59284828,0.00018798,3]
[352053164,1738911044247,-2041.39172018,0.00018798,3]
[352053165,1738911044337,-78616.59854648,0.00018798,3]
[352053166,1738911044349,-582.49,0.00018798,2]
[352053167,1738911044361,-500.0,0.00018798,2]
[352053168,1738911044371,-500.0,0.00018798,2]
[352053169,1738911044383,-266.52,0.00018798,2]
[352053170,1738911044392,-295.11264536,0.00018798,2]
[352053171,1738911044401,-13149.27880824,0.00018798,2]
[352053172,1738911044414,-687214.9085266,0.00018798,2]
[352053173,1738911044426,-1776.20347505,0.00018798,2]
[352053178,1738911046537,-270.32830976,0.00018797,2]
[352053179,1738911046549,-229.67169024,0.00018797,2]
[352053180,1738911046559,-4000.0,0.00018798,2]
[352053181,1738911046569,-500.0,0.00018798,2]
[352053182,1738911046579,-429.91861123,0.00018798,2]
[352053183,1738911046591,-29.80138877,0.00018798,2]
[352053184,1738911046600,-15064.49485468,0.00018798,2]
[352053185,1738911046612,-5412.26589998,0.00018798,2]
[352053186,1738911046623,-9684.958,0.00018798,2]
[352053187,1738911046634,-598.51284646,0.00018798,2]
[352053188,1738911046654,-343.21999969,0.00018798,2]
[352053189,1738911046669,-466.04135933,0.00018798,2]
[352053190,1738911046681,-2346.29881975,0.00018798,2]
[352053202,1738911545517,-4320.7209,8.836e-05,2]
[352053203,1738911545544,-388.57,0.00010137,2]
[352053204,1738911545565,-198.68,0.00013699,2]
[352053221,1738912231711,-397.92779334,0.00014824,2]
[352053222,1738912231723,-54.08220666,0.00014824,2]
[352053223,1738912231732,-300.0,0.00015117,2]
[352053224,1738912231743,-377.42,0.00015118,2]
[352053225,1738912231755,-150.0,0.00015118,2]
[352053226,1738912231765,-370.44,0.00015118,2]
[352053227,1738912231776,-373.46,0.00015118,2]
[352053228,1738912231785,-369.85,0.00015118,2]
[352053229,1738912231795,-375.0,0.00015118,2]
[352053230,1738912231806,-369.21,0.00015118,2]
[352053231,1738912231815,-380.74,0.00015118,2]
[352053232,1738912231824,-10.17970949,0.00015118,2]
[352053233,1738912231839,-363.09029051,0.00015118,2]
[352053234,1738912231849,-136.90970949,0.00015118,2]
[352053235,1738912231880,-233.12029051,0.00015118,2]
[352053236,1738912231890,-346.24324143,0.00015118,2]
[352053237,1738912231922,-22.77675857,0.00015118,2]
[352053238,1738912231932,-379.93,0.00015118,2]
[352053239,1738912231942,-368.1,0.00015118,2]
[352053240,1738912231951,-376.23,0.00015118,2]
[352053241,1738912231961,-45.5025306,0.00015118,2]
[352053365,1738912239718,-333.8274694,0.00015118,2]
[352053367,1738912239727,-381.1,0.00015118,2]
[352053369,1738912239737,-372.49,0.00015118,2]
[352053371,1738912239746,-169.1825306,0.00015118,2]
[352053395,1738912239969,-212.0074694,0.00015118,2]
[352053397,1738912239979,-378.53,0.00015118,2]
[352053399,1738912239988,-1437.12877272,0.00015118,2]
[352053401,1738912239997,-500.0,0.000152,2]
[352053403,1738912240006,-369.26,0.0001535,2]
[352053405,1738912240015,-151.95,0.00015618,2]
[352053407,1738912240025,-151.44,0.00015618,2]
[352053409,1738912240035,-500.0,0.00015748,2]
[352053411,1738912240044,-150.0,0.00016306,2]
[352053413,1738912240053,-500.0,0.00016508,2]
[352053415,1738912240063,-101.35285888,0.0001663,2]
[352053417,1738912240078,-48.64714112,0.0001663,2]
[352053419,1738912240092,-306.00916,0.00016688,7]
[352053421,1738912240102,-615.3636951,0.00016707,2]
[352053701,1738912242683,-651.2363049,0.00016707,2]
[352053703,1738912242693,-226.94,0.00016708,2]
[352053705,1738912242702,-350.3213051,0.00016735,2]
[352053707,1738912242713,-3427.9686949,0.00016735,2]
[352053709,1738912242722,-761.05,0.00016737,2]
[352053711,1738912242732,-1000.0,0.00016757,2]
[352053713,1738912242741,-388.57,0.00016813,2]
[352053715,1738912242753,-164.16,0.00016828,2]
[352053717,1738912242763,-306.00916,0.00016888,7]
[352053719,1738912242773,-923.59,0.00016906,2]
[352053721,1738912242782,-300.0,0.00016923,2]
[352053723,1738912242792,-2343.14,0.00016934,2]
[352053725,1738912242801,-1533.53,0.00017016,2]
[352053727,1738912242810,-1526.21,0.0001708,2]
[352053729,1738912242819,-452.01,0.00017088,2]
[352053731,1738912242830,-306.00916,0.00017088,7]
[352053733,1738912242839,-169.33,0.00017098,2]
[352053735,1738912242848,-306.00916,0.00017288,7]
[352053737,1738912242857,-500.0,0.00017315,2]
[352053739,1738912242867,-269.43,0.00017345,30]
[352053741,1738912242876,-3165.45726209,0.00017392,2]
[352053743,1738912242885,-3165.45726209,0.00017402,2]
[352053745,1738912242894,-6676.03270983,0.00017402,2]
[352053747,1738912242903,-764.01716339,0.00017415,2]
[352053749,1738912242915,-1406.09166,0.00017415,2]
[352053753,1738912242935,-250.0,0.00016927,2]
[352053755,1738912242945,-995.3484387,0.00017415,2]
[352053757,1738912242954,-6676.03270983,0.00017449,2]
[352053759,1738912242963,-1164.69764297,0.00017454,2]
[352053761,1738912242975,-392.640009,0.00017454,2]
[352053763,1738912242986,-5118.69505786,0.00017454,2]
[352053765,1738912242995,-6676.03270983,0.00017476,2]
[352053767,1738912243005,-306.00916,0.00017488,7]
[352053769,1738912243014,-3165.45726209,0.00017495,2]
[352053771,1738912243023,-306.00916,0.00017688,7]
[352053773,1738912243033,-163.36,0.00017694,2]
[352053775,1738912243042,-150.0,0.00017753,2]
[352053777,1738912243052,-150.0,0.00017803,2]
[352053779,1738912243061,-306.00916,0.00017888,7]
[352053781,1738912243071,-1549.59,0.00017941,2]
[352053783,1738912243080,-878.24,0.00017941,2]
[352053785,1738912243090,-150.0,0.00017951,2]
[352053787,1738912243100,-77681.35287324,0.00018,2]
[352053789,1738912243109,-151.59,0.00018078,2]
[352053791,1738912243118,-300.0,0.00018078,2]
[352053793,1738912243127,-876.92,0.00018078,2]
[352053795,1738912243135,-306.00916,0.00018088,7]
[352053797,1738912243145,-180.236,0.000181,2]
[352053799,1738912243154,-3097.993,0.000181,2]
[352053801,1738912243163,-300.0,0.000181,2]
[352053803,1738912243173,-1259.27646235,0.00018137,2]
[352053805,1738912243183,-500.0,0.00018159,2]
[352053807,1738912243192,-1500.0,0.000182,6]
[352053809,1738912243201,-1259.27646235,0.00018219,2]
[352053811,1738912243211,-306.00916,0.00018288,7]
[352053813,1738912243220,-3100.0,0.000183,6]
[352053815,1738912243230,-1259.27646235,0.00018301,2]
[352053817,1738912243240,-1200.39227716,0.000184,6]